bitfinex/quotes_SOLUSD_20241016
["timestamp","ask_amount","ask_price","bid_price","bid_amount"]
[1729113261868,10.13232078,154.11,154.08,11.64858722]
[1729113262356,30.263484,154.17,154.08,11.64858722]
[1729113262722,6.4869,154.16,154.08,11.64858722]
[1729113267756,33.90493015,154.17,154.08,11.64858722]
[1729113267957,10.12804615,154.17,154.09,20.0]
[1729113269342,16.61444615,154.17,154.09,20.0]
[1729113273270,10.12804615,154.17,154.06,0.354609]
[1729113273479,6.489,154.11,154.06,0.354609]
[1729113273660,61.992884,154.16,154.06,0.354609]
[1729113273850,23.776884,154.14,154.06,0.354609]
[1729113274056,6.4883,154.13,154.06,0.354609]
[1729113274669,6.4883,154.13,154.06,20.354609]
[1729113275777,23.776884,154.13,154.06,0.354609]
[1729113275979,6.4897,154.09,154.06,0.354609]
[1729113279162,23.776884,154.13,154.06,0.354609]
[1729113279359,23.776884,154.11,154.06,0.354609]
[1729113279559,30.265784,154.11,154.06,0.354609]
[1729113280755,6.4892,154.1,154.06,0.354609]
[1729113282175,23.776884,154.11,154.06,0.354609]
[1729113282365,6.4901,154.08,154.06,0.354609]
[1729113283186,16.5287,154.1,154.06,0.354609]
[1729113283187,6.4905,154.07,154.06,0.354609]
[1729113283770,30.267384,154.07,154.06,0.354609]
[1729113289499,6.4902,154.08,154.06,0.354609]
[1729113289993,23.776884,154.09,154.06,0.354609]
[1729113289994,30.266884,154.09,154.06,0.354609]
[1729113290707,6.4901,154.08,154.06,0.354609]
[1729113296211,30.266984,154.09,154.06,0.354609]
[1729113296799,23.0182,154.1,154.06,0.354609]
[1729113297194,16.5287,154.1,154.06,0.354609]
[1729113297790,6.77857886,154.12,154.06,0.354609]
[1729113298113,6.4883,154.13,154.06,0.354609]
[1729113298499,23.776884,154.12,154.06,0.354609]
[1729113298997,23.776884,154.13,154.06,0.354609]
[1729113299404,30.264984,154.13,154.06,0.354609]
[1729113299790,21.9026,154.14,154.06,20.354609]
[1729113300602,6.4878,154.14,154.07,11.64858722]
[1729113300801,6.4874,154.15,154.07,11.64858722]
[1729113301316,6.4874,154.15,154.08,20.0]
[1729113301515,6.77725002,154.16,154.08,20.0]
[1729113302112,13.26415002,154.16,154.08,20.0]
[1729113302324,23.776884,154.15,154.08,20.0]
[1729113302494,23.776884,154.15,154.06,20.0]
[1729113303516,6.4881,154.13,154.06,20.0]
[1729113303718,6.4876,154.14,154.06,20.0]
[1729113304125,30.264284,154.15,154.06,20.0]
[1729113304427,23.776884,154.15,154.08,20.0]
[1729113304909,13.26405002,154.16,154.08,20.0]
[1729113305109,6.77725002,154.16,154.08,20.0]
[1729113305694,6.77725002,154.16,154.09,11.64858722]
[1729113305901,6.77725002,154.16,154.1,20.0]
[1729113306118,10.12804615,154.17,154.1,20.0]
[1729113306421,10.12804615,154.17,154.12,20.0]
[1729113307015,10.12804615,154.17,154.11,11.64858722]
[1729113307016,10.12804615,154.17,154.11,20.0]
[1729113307400,16.61444615,154.17,154.11,20.0]
[1729113308027,23.776884,154.16,154.11,20.0]
[1729113309621,16.61444615,154.17,154.11,20.0]
[1729113310121,10.12804615,154.17,154.11,20.0]
[1729113310302,10.12804615,154.17,154.11,31.64858722]
[1729113318303,10.12804615,154.17,154.11,20.0]
[1729113320806,30.263884,154.16,154.06,21.4491]
[1729113321411,30.263884,154.16,154.07,11.64858722]
[1729113322132,30.263884,154.16,154.08,20.0]
[1729113326815,6.4872,154.15,154.07,20.0]
[1729113327916,6.4872,154.15,154.07,31.64858722]
[1729113330550,6.4876,154.14,154.07,20.0]
[1729113330729,6.4883,154.13,154.07,20.0]
[1729113331248,39.881184,154.16,154.07,20.0]
[1729113331442,6.4876,154.14,154.07,20.0]
[1729113335241,6.4887,154.12,154.05,0.127673]
[1729113343152,6.4881,154.13,154.05,0.127673]
[1729113343956,46.66203986,154.16,154.05,11.77626022]
[1729113344157,6.4883,154.13,154.05,11.77626022]
[1729113344532,6.4889,154.11,154.05,0.127673]
[1729113344735,6.4884,154.12,154.05,20.127673]
[1729113345336,26.34728188,154.15,154.05,0.127673]
[1729113345553,16.2203,154.13,154.05,0.127673]
[1729113345755,6.4893,154.1,154.05,0.127673]
[1729113349944,6.4889,154.11,154.05,0.127673]
[1729113350257,23.776884,154.1,154.05,0.127673]
[1729113353260,6.4898,154.09,154.05,0.127673]
[1729113355165,23.776884,154.1,154.05,0.127673]
[1729113355360,6.4901,154.08,154.05,0.127673]
[1729113356153,6.4909,154.06,154.05,0.127673]
[1729113358457,22.1386,154.06,154.05,0.127673]
[1729113361151,52.1386,154.06,154.05,0.127673]
[1729113361364,22.7255,154.0,153.86,6.78185019]
[1729113361671,6.4939,153.99,153.9,23.3440799]
[1729113362747,6.4939,153.99,153.91,20.0]
[1729113363162,26.37350751,154.0,153.81,1.12988772]
[1729113363163,6.4963,153.94,153.82,46.07562768]
[1729113363477,38.0687,153.98,153.8,11.47607803]
[1729113363478,6.4982,153.89,153.8,11.47607803]
[1729113363678,16.0518,153.92,153.8,11.47607803]
[1729113363679,15.9518,153.92,153.84,11.64858722]
[1729113363868,15.9518,153.92,153.8,11.47607803]
[1729113363869,12.6918,153.93,153.85,11.64858722]
[1729113364092,12.6918,153.93,153.85,11.14858722]
[1729113364254,6.4986,153.88,153.8,11.47607803]
[1729113364649,23.776884,153.87,153.8,11.47607803]
[1729113364854,30.275884,153.87,153.8,11.47607803]
[1729113365169,23.776884,153.85,153.8,11.47607803]
[1729113365548,16.64483873,153.9,153.8,11.47607803]
[1729113365768,10.14693873,153.9,153.81,11.64858722]
[1729113366667,10.14693873,153.9,153.83,11.64858722]
[1729113366879,10.14693873,153.9,153.85,11.64858722]
[1729113367664,10.14693873,153.9,153.83,6.3413]
[1729113367865,10.14693873,153.9,153.84,38.25305198]
[1729113368788,26.08888295,153.98,153.84,38.25305198]
[1729113368971,12.7485,153.98,153.84,38.35305198]
[1729113369171,12.7485,153.98,153.84,38.25305198]
[1729113370660,12.7485,153.98,153.84,38.35305198]
[1729113371073,13.18281909,153.97,153.84,38.35305198]
[1729113371358,12.7485,153.98,153.84,37.35305198]
[1729113372563,6.2542,153.98,153.86,18.25305198]
[1729113372769,1.13005073,154.0,153.88,18.25305198]
[1729113373260,1.13005073,154.0,153.89,20.0]
[1729113373460,19.36440059,153.99,153.89,20.0]
[1729113373665,6.4939,153.99,153.89,20.0]
[1729113374588,7.62355073,154.0,153.89,20.0]
[1729113374788,6.4935,154.0,153.89,20.0]
[1729113376293,19.37950629,154.0,153.89,20.0]
[1729113376477,25.89558922,154.01,153.89,20.0]
[1729113377086,12.85467231,154.0,153.89,20.0]
[1729113377270,32.38868922,154.01,153.89,20.0]
[1729113377470,12.73762339,154.0,153.89,20.0]
[1729113377693,32.38868922,154.01,153.89,20.0]
[1729113381393,32.38868922,154.01,153.91,26.3887]
[1729113381394,10.14008922,154.01,153.91,26.3887]
[1729113381975,6.494,153.99,153.91,26.3887]
[1729113382174,6.4935,154.0,153.91,26.3887]
[1729113383397,22.71122511,154.01,153.91,26.3887]
[1729113383708,6.4948,153.97,153.91,26.3887]
[1729113384080,6.4944,153.98,153.91,26.3887]
[1729113384277,10.14008922,154.01,153.87,6.4134]
[1729113384475,6.4957,153.95,153.87,6.4134]
[1729113385479,6.4957,153.95,153.88,20.0]
[1729113385683,16.2344,154.0,153.88,20.0]
[1729113385893,6.4951,153.97,153.88,20.0]
[1729113386285,12.95317762,153.96,153.88,20.0]
[1729113386581,13.46466392,153.95,153.88,20.0]
[1729113386806,5.9952,153.96,153.88,20.0]
[1729113388997,12.66034848,153.95,153.88,20.0]
[1729113389198,5.9952,153.96,153.88,20.0]
[1729113389983,6.4965,153.93,153.86,16.2042]
[1729113390183,6.4968,153.92,153.84,18.27091841]
[1729113390391,31.5245,153.98,153.84,18.27091841]
[1729113390594,31.5245,153.98,153.84,6.5895]
[1729113390911,6.4964,153.93,153.84,18.27091841]
[1729113391202,6.497,153.92,153.84,18.27091841]
[1729113392007,6.497,153.92,153.85,20.0]
[1729113394403,6.3408,153.94,153.84,11.68141841]
[1729113394799,6.4974,153.91,153.84,11.68141841]
[1729113397102,6.4967,153.93,153.84,11.68141841]
[1729113399713,6.4969,153.92,153.84,11.68141841]
[1729113401084,6.4968,153.93,153.85,20.0]
[1729113401394,6.4969,153.92,153.85,20.0]
[1729113411713,6.4968,153.92,153.85,20.0]
[1729113412302,6.4968,153.92,153.84,11.68141841]
[1729113412303,6.4967,153.93,153.86,11.68141841]
[1729113412496,6.4964,153.94,153.86,11.68141841]
[1729113412696,6.77604042,153.96,153.9,11.68141841]
[1729113412921,6.495,153.97,153.9,11.68141841]
[1729113413821,11.64187558,153.96,153.9,11.68141841]
[1729113414129,6.495,153.97,153.9,11.68141841]
[1729113414419,11.93995086,153.96,153.9,11.68141841]
[1729113414604,11.27005822,154.01,153.92,11.68141841]
[1729113414605,16.63318922,154.01,153.92,11.68141841]
[1729113414808,16.63318922,154.01,153.93,20.0]
[1729113421634,6.4936,154.0,153.92,11.68141841]
[1729113427111,26.37368922,154.01,153.89,20.0]
[1729113427432,26.37368922,154.01,153.89,31.68141841]
[1729113427640,23.776884,154.0,153.89,31.68141841]
[1729113428436,6.495,153.97,153.89,31.68141841]
[1729113430217,6.4961,153.94,153.88,15.1633]
[1729113430623,6.4961,153.94,153.86,11.68141841]
[1729113431424,6.4961,153.94,153.87,20.0]
[1729113432635,6.4961,153.94,153.85,20.0]
[1729113432851,6.4961,153.94,153.87,20.0]
[1729113433038,15.1105,153.96,153.88,11.68141841]
[1729113433238,21.606,153.96,153.88,11.68141841]
[1729113434654,15.1105,153.96,153.88,11.68141841]
[1729113434823,6.4956,153.95,153.88,11.68141841]
[1729113438233,23.776884,153.95,153.86,11.68141841]
[1729113438428,23.776884,153.95,153.88,11.68141841]
[1729113439429,6.4961,153.94,153.88,11.68141841]
[1729113439629,6.4964,153.93,153.85,20.0]
[1729113439850,6.4964,153.93,153.87,20.0]
[1729113440855,6.4962,153.94,153.87,20.0]
[1729113441429,23.776884,153.95,153.87,20.0]
[1729113441739,6.4969,153.92,153.85,31.68141841]
[1729113442651,12.55308846,153.91,153.85,31.68141841]
[1729113442874,6.4969,153.92,153.85,31.68141841]
[1729113444240,12.63716947,153.91,153.85,31.68141841]
[1729113444431,6.4969,153.92,153.85,31.68141841]
[1729113444633,15.1105,153.96,153.87,11.68141841]
[1729113444850,21.6057,153.96,153.89,11.68141841]
[1729113445856,6.4956,153.95,153.89,11.68141841]
[1729113448463,21.6057,153.96,153.89,11.68141841]
[1729113449541,15.1105,153.96,153.89,11.68141841]
[1729113449749,6.4949,153.97,153.91,11.68141841]
[1729113453777,6.4949,153.97,153.9,20.0]
[1729113456068,13.15140228,153.96,153.9,20.0]
[1729113456271,6.4949,153.97,153.9,20.0]
[1729113461195,6.4949,153.97,153.85,20.1]
[1729113461487,6.4949,153.97,153.9,20.0]
[1729113463980,6.4971,153.92,153.84,21.469]
[1729113464170,23.776884,153.96,153.84,21.469]
[1729113464373,4.39139332,153.95,153.87,11.68141841]
[1729113464682,10.88769332,153.94,153.87,11.68141841]
[1729113464876,6.4963,153.94,153.87,11.68141841]
[1729113465994,6.4967,153.93,153.87,11.68141841]
[1729113469181,6.4967,153.93,153.84,21.469]
[1729113469182,6.4971,153.92,153.85,20.0]
[1729113469387,6.4971,153.92,153.85,31.68141841]
[1729113469584,6.4971,153.92,153.85,20.0]
[1729113469793,6.4971,153.92,153.85,31.68141841]
[1729113471672,16.2382,153.96,153.85,31.68141841]
[1729113471989,6.4965,153.93,153.85,31.68141841]
[1729113474301,7.90446443,153.97,153.89,11.68141841]
[1729113474501,4.39778628,153.96,153.91,11.68141841]
[1729113474682,16.2301,154.0,153.91,11.68141841]
[1729113474894,6.4945,153.98,153.91,11.68141841]
[1729113475197,4.39770803,153.97,153.91,11.68141841]
[1729113475403,4.39770803,153.96,153.91,11.68141841]
[1729113475576,4.39770803,153.95,153.91,11.68141841]
[1729113475912,6.494,153.99,153.91,11.68141841]
[1729113476104,4.39993482,153.98,153.91,11.68141841]
[1729113476405,20.31448963,153.99,153.91,11.68141841]
[1729113476406,4.39993482,153.97,153.91,11.68141841]
[1729113476574,6.494,153.99,153.91,11.68141841]
[1729113476775,4.40005493,153.98,153.91,11.68141841]
[1729113476997,4.40005493,153.97,153.91,11.68141841]
[1729113477178,6.494,153.99,153.91,11.68141841]
[1729113477381,4.39911444,153.98,153.91,11.68141841]
[1729113477581,4.39911444,153.97,153.91,11.68141841]
[1729113477798,6.494,153.99,153.91,11.68141841]
[1729113477975,4.39875253,153.98,153.91,11.68141841]
[1729113478174,4.39875253,153.97,153.91,11.68141841]
[1729113478375,6.494,153.99,153.91,11.68141841]
[1729113478597,4.39833386,153.98,153.91,11.68141841]
[1729113478801,4.39833386,153.97,153.91,11.68141841]
[1729113479096,6.494,153.99,153.91,11.68141841]
[1729113479291,4.397545,153.98,153.91,11.68141841]
[1729113479472,6.494,153.99,153.91,11.68141841]
[1729113479682,4.3975304,153.98,153.91,11.68141841]
[1729113479886,4.39763596,153.97,153.91,11.68141841]
[1729113480105,4.39763596,153.96,153.91,11.68141841]
[1729113480412,6.4946,153.98,153.91,11.68141841]
[1729113480640,10.8921221,153.97,153.9,28.04931841]
[1729113480788,6.4948,153.97,153.9,28.04931841]
[1729113481988,4.39699603,153.96,153.9,28.04931841]
[1729113482186,6.4948,153.97,153.9,28.04931841]
[1729113482403,4.39682631,153.96,153.9,28.04931841]
[1729113482608,6.4948,153.97,153.9,28.04931841]
[1729113485988,6.4944,153.98,153.9,28.04931841]
[1729113486298,4.39652245,153.97,153.9,28.04931841]
[1729113486494,6.4944,153.98,153.9,28.04931841]
[1729113486691,4.39644585,153.97,153.9,28.04931841]
[1729113486894,6.4944,153.98,153.9,28.04931841]
[1729113487093,4.39642914,153.97,153.9,28.04931841]
[1729113487294,6.4944,153.98,153.9,28.04931841]
[1729113487501,4.3963172,153.97,153.9,28.04931841]
[1729113487705,6.4944,153.98,153.9,28.04931841]
[1729113488013,4.39637043,153.97,153.9,28.04931841]
[1729113488206,6.4944,153.98,153.9,28.04931841]
[1729113489307,22.7237,154.0,153.92,11.68141841]
[1729113489506,4.3964589,153.97,153.96,11.68141841]
[1729113489712,1.12993208,154.04,153.97,20.0]
[1729113490014,10.13910131,154.05,154.0,11.68141841]
[1729113490822,4.39372754,154.04,154.0,11.68141841]
[1729113491000,4.39372754,154.03,154.0,11.68141841]
[1729113491200,10.13910131,154.05,154.0,11.68141841]
[1729113491413,4.39334755,154.04,154.0,11.68141841]
[1729113491726,10.13910131,154.05,154.0,11.68141841]
[1729113491918,4.39089558,154.04,154.0,11.68141841]
[1729113492094,10.13910131,154.05,154.0,11.68141841]
[1729113492428,4.38861986,154.04,154.0,11.68141841]
[1729113492597,10.13910131,154.05,154.0,11.68141841]
[1729113492797,4.38727375,154.04,154.0,11.68141841]
[1729113492997,10.13910131,154.05,154.0,11.68141841]
[1729113502727,10.13910131,154.05,154.02,11.68141841]
[1729113503822,10.13910131,154.05,154.04,31.68141841]
[1729113504027,20.6755085,154.12,154.04,31.68141841]
[1729113504208,6.488,154.13,154.06,11.68141841]
[1729113504904,14.09922977,154.12,154.06,11.68141841]
[1729113505109,6.488,154.13,154.06,11.68141841]
[1729113505429,6.4877,154.14,154.06,11.68141841]
[1729113507223,22.6435,154.16,154.08,11.68141841]
[1729113507420,16.1568,154.16,154.08,11.68141841]
[1729113507730,13.96031752,154.15,154.08,11.68141841]
[1729113508038,16.1568,154.16,154.08,11.68141841]
[1729113508208,22.6436,154.16,154.08,11.68141841]
[1729113509042,13.99197083,154.15,154.08,11.68141841]
[1729113509231,22.6436,154.16,154.08,11.68141841]
[1729113510415,16.1568,154.16,154.08,11.68141841]
[1729113511829,6.4875,154.15,154.06,20.0]
[1729113512128,6.4875,154.15,154.08,20.0]
[1729113521323,6.4875,154.15,154.07,11.68141841]
[1729113523929,12.27013453,154.14,154.07,11.68141841]
[1729113524133,6.4875,154.15,154.07,11.68141841]
[1729113529848,17.28542259,154.16,154.06,20.0]
[1729113530148,17.28542259,154.16,154.06,31.68141841]
[1729113530149,6.4885,154.12,154.06,31.68141841]
[1729113532633,6.4879,154.14,154.07,11.68141841]
[1729113532954,6.4874,154.15,154.07,11.68141841]
[1729113533257,16.1568,154.16,154.06,20.0]
[1729113533258,6.4883,154.13,154.06,20.0]
[1729113533545,16.1568,154.16,154.06,31.68141841]
[1729113534346,6.4879,154.14,154.06,31.68141841]
[1729113535150,16.1568,154.16,154.06,31.68141841]
[1729113535447,6.4875,154.15,154.06,31.68141841]
[1729113535845,6.4879,154.14,154.06,31.68141841]
[1729113549248,6.4889,154.11,154.05,6.5659]
[1729113549450,16.1568,154.16,154.05,20.0]
[1729113549753,6.489,154.11,154.05,20.0]
[1729113551041,6.489,154.11,154.04,11.68141841]
[1729113551042,17.34797088,154.14,154.02,16.0853]
[1729113551345,6.4894,154.1,154.02,27.76671841]
[1729113551546,4.39195848,154.09,154.02,27.76671841]
[1729113552159,6.4894,154.1,154.02,27.76671841]
[1729113552581,6.4894,154.1,154.02,16.0853]
[1729113552756,23.776884,154.13,154.03,20.0]
[1729113552963,6.4898,154.09,154.03,20.0]
[1729113554877,23.776884,154.1,153.98,16.3494]
[1729113555079,23.776884,154.1,154.0,11.68141841]
[1729113555275,23.776884,154.1,154.01,20.0]
[1729113556175,23.776884,154.1,153.99,20.0]
[1729113556383,6.4914,154.05,153.99,31.68141841]
[1729113556562,40.000584,154.1,153.99,31.68141841]
[1729113556563,40.000584,154.1,153.99,11.68141841]
[1729113556772,6.4911,154.06,153.99,11.68141841]
[1729113560195,6.4911,154.06,153.99,20.0]
[1729113561874,6.76821223,154.09,154.02,11.68141841]
[1729113562076,6.4897,154.1,154.04,11.68141841]
[1729113565488,16.0823,154.11,154.04,11.68141841]
[1729113565706,6.4887,154.12,154.06,11.68141841]
[1729113574981,6.4881,154.13,154.06,11.68141841]
[1729113575195,1.12880599,154.14,154.06,11.68141841]
[1729113575402,6.4878,154.14,154.06,11.68141841]
[1729113576194,21.5438,154.15,154.08,11.68141841]
[1729113576500,4.37838504,154.14,154.08,11.68141841]
[1729113576706,15.0563,154.15,154.08,11.68141841]
[1729113577085,4.3783538,154.14,154.08,11.68141841]
[1729113577409,21.5434,154.15,154.08,11.68141841]
[1729113583118,6.4871,154.15,154.08,11.68141841]
[1729113584609,6.4871,154.15,154.1,11.68141841]
[1729113592420,6.4871,154.15,154.09,11.68141841]
[1729113601299,6.4871,154.15,154.08,11.68141841]
[1729113602715,6.4878,154.14,154.08,11.68141841]
[1729113604325,10.13035894,154.17,154.08,11.68141841]
[1729113604619,6.4872,154.15,154.08,11.68141841]
[1729113605218,6.4872,154.15,154.1,11.68141841]
[1729113610517,6.4872,154.15,154.08,11.68141841]
[1729113615507,16.2153,154.18,154.08,11.68141841]
[1729113615708,6.4872,154.15,154.08,11.68141841]
[1729113615903,10.12831566,154.17,154.08,11.68141841]
[1729113616108,10.87294376,154.16,154.08,11.68141841]
[1729113616420,4.38594376,154.15,154.08,11.68141841]
[1729113617833,10.87324376,154.15,154.08,11.68141841]
[1729113618014,6.4873,154.15,154.08,11.68141841]
[1729113622039,23.776884,154.13,154.0,16.0954]
[1729113622213,6.4908,154.07,154.0,16.0954]
[1729113623330,6.49,154.09,154.0,27.77681841]
[1729113623632,6.4894,154.1,154.0,27.77681841]
[1729113623834,10.87361619,154.09,154.0,27.77681841]
[1729113624143,6.4897,154.09,154.0,27.77681841]
[1729113624837,6.4897,154.09,154.01,20.0]
[1729113625042,6.4897,154.09,154.02,11.68141841]
[1729113632747,6.4901,154.08,154.02,11.68141841]
[1729113637950,10.13250109,154.1,154.01,20.0]
[1729113638157,10.13250109,154.1,154.02,11.68141841]
[1729113638834,16.62210109,154.1,154.02,11.68141841]
[1729113640250,10.13250109,154.1,154.04,11.68141841]
[1729113644456,10.13250109,154.1,154.02,0.1]
[1729113644757,10.13250109,154.1,154.05,11.68141841]
[1729113656666,6.4905,154.07,154.01,20.0]
[1729113656868,6.4902,154.08,154.01,31.68141841]
[1729113663442,6.4902,154.08,153.96,0.1]
[1729113663443,15.4008,154.07,153.95,15.8549]
[1729113663652,6.4919,154.04,153.97,11.68141841]
[1729113664279,6.4919,154.04,153.95,15.9549]
[1729113664566,6.4919,154.04,153.98,11.68141841]
[1729113665349,6.4919,154.04,153.99,20.0]
[1729113667459,6.4915,154.05,153.99,20.0]
[1729113667675,6.4915,154.05,153.96,20.0]
[1729113667971,6.4915,154.05,153.98,11.68141841]
[1729113675682,21.8916,154.07,153.98,11.68141841]
[1729113675867,6.4914,154.05,153.98,11.68141841]
[1729113676859,15.38362125,154.04,153.98,11.68141841]
[1729113677059,6.4914,154.05,153.98,11.68141841]
[1729113677955,15.4123602,154.04,153.98,11.68141841]
[1729113678159,6.4914,154.05,153.98,11.68141841]
[1729113686788,15.4008,154.07,153.96,20.0]
[1729113687087,16.2288,154.05,153.95,27.53631841]
[1729113687385,6.4928,154.02,153.95,27.53631841]
[1729113693289,6.4928,154.02,153.95,11.68141841]
[1729113695298,6.4932,154.01,153.94,20.0]
[1729113695476,6.4932,154.01,153.94,31.68141841]
[1729113695678,23.776884,154.05,153.94,31.68141841]
[1729113695879,6.4928,154.02,153.94,31.68141841]
[1729113696191,16.2257,154.02,153.92,20.0]
[1729113696403,6.4934,154.01,153.94,11.68141841]
[1729113697589,15.29805573,154.0,153.94,11.68141841]
[1729113697786,15.13330052,153.99,153.94,11.68141841]
[1729113698089,6.4934,154.01,153.94,11.68141841]
[1729113698601,17.02982563,154.0,153.94,11.68141841]
[1729113698800,6.4934,154.01,153.92,20.0]
[1729113698989,6.4934,154.01,153.94,11.68141841]
[1729113699170,15.21929756,154.0,153.94,11.68141841]
[1729113699375,22.7184,154.02,153.95,20.0]
[1729113700877,37.59626523,154.02,153.95,20.0]
[1729113701077,22.7184,154.02,153.95,20.0]
[1729113701273,22.7184,154.02,153.92,20.0]
[1729113701489,37.6097976,154.02,153.95,11.68141841]
[1729113701690,22.7184,154.02,153.95,11.68141841]
[1729113705104,6.4933,154.01,153.92,20.0]
[1729113705309,6.4933,154.01,153.95,11.68141841]
[1729113705494,16.2257,154.02,153.95,11.68141841]
[1729113705693,22.7184,154.02,153.95,11.68141841]
[1729113709519,15.09790027,154.01,153.95,11.68141841]
[1729113709694,37.20681925,154.02,153.95,11.68141841]
[1729113709900,22.7184,154.02,153.95,11.68141841]
[1729113714992,15.76894425,154.01,153.95,11.68141841]
[1729113715211,22.7184,154.02,153.95,11.68141841]
[1729113716214,15.48438394,154.01,153.95,11.68141841]
[1729113716412,22.7184,154.02,153.95,11.68141841]
[1729113717919,15.52670447,154.01,153.95,11.68141841]
[1729113718120,22.7184,154.02,153.95,11.68141841]
[1729113722518,14.49542967,154.01,153.95,11.68141841]
[1729113722846,22.7184,154.02,153.95,11.68141841]
[1729113723530,10.88246017,154.01,153.95,11.68141841]
[1729113723825,22.7184,154.02,153.95,11.68141841]
[1729113724930,14.08547518,154.01,153.95,11.68141841]
[1729113725233,22.7184,154.02,153.95,11.68141841]
[1729113726033,14.24160756,154.01,153.95,11.68141841]
[1729113726205,22.7184,154.02,153.95,11.68141841]
[1729113729204,1.12886322,154.04,154.01,11.68141841]
[1729113729409,6.77537166,154.06,154.03,11.68141841]
[1729113729618,10.13250109,154.1,154.05,11.68141841]
[1729113729921,10.13250109,154.1,154.08,11.68141841]
[1729113731210,15.8355,154.16,154.08,11.68141841]
[1729113731412,4.37015102,154.15,154.12,11.68141841]
[1729113731616,29.2032824,154.21,154.12,11.68141841]
[1729113731916,25.89986299,154.2,154.14,11.68141841]
[1729113732215,21.5297,154.2,154.14,11.68141841]
[1729113733016,21.5297,154.2,154.1,20.0]
[1729113733400,21.5297,154.2,154.14,11.68141841]
[1729113736904,15.0446,154.2,154.12,11.68141841]
[1729113737103,6.4862,154.18,154.12,11.68141841]
[1729113738230,6.4858,154.19,154.1,20.0]
[1729113738424,6.4858,154.19,154.12,11.68141841]
[1729113738820,21.5297,154.2,154.14,11.68141841]
[1729113739018,13.2549824,154.21,154.14,11.68141841]
[1729113739214,6.7702824,154.21,154.2,11.68141841]
[1729113739419,12.38698475,154.23,154.2,11.68141841]
[1729113739611,0.6199881,154.28,154.22,11.68141841]
[1729113739813,12.8127945,154.27,154.22,11.68141841]
[1729113740036,0.6199881,154.28,154.22,11.68141841]
[1729113742220,0.6199881,154.28,154.24,11.68141841]
[1729113742535,0.6199881,154.28,154.17,43.776884]
[1729113742719,0.6199881,154.28,154.19,11.68141841]
[1729113742911,6.483,154.25,154.17,31.68141841]
[1729113743121,6.4826,154.26,154.17,31.68141841]
[1729113749315,6.4826,154.26,154.19,11.68141841]
[1729113751322,6.4821,154.27,154.19,11.68141841]
[1729113758747,6.4832,154.25,154.19,11.68141841]
[1729113758934,6.4832,154.25,154.17,31.68141841]
[1729113761349,6.4832,154.25,154.19,11.68141841]
[1729113763244,6.4851,154.2,154.17,20.0]
[1729113763426,15.3463,154.26,154.14,6.2628]
[1729113763624,6.4847,154.21,154.14,6.2628]
[1729113767431,6.4852,154.2,154.14,20.0]
[1729113772354,6.4855,154.19,154.14,20.0]
[1729113772556,6.4855,154.19,154.13,11.68141841]
[1729113772847,6.486,154.18,154.13,20.0]
[1729113774233,6.4856,154.19,154.13,20.0]
[1729113781662,6.486,154.18,154.11,20.0]
[1729113799265,16.6522,154.2,154.11,20.0]
[1729113799571,6.4856,154.19,154.11,20.0]
[1729113806274,4.37841138,154.18,154.11,20.0]
[1729113806474,6.4856,154.19,154.11,20.0]
[1729113806672,4.37846368,154.18,154.11,20.0]
[1729113806874,6.4856,154.19,154.11,20.0]
[1729113807072,4.3783913,154.18,154.11,20.0]
[1729113807381,6.4856,154.19,154.11,20.0]
[1729113807678,4.37992858,154.18,154.11,20.0]
[1729113807880,6.4856,154.19,154.11,20.0]
[1729113808182,4.37997365,154.18,154.11,20.0]
[1729113808380,6.4856,154.19,154.11,20.0]
[1729113808577,4.38196511,154.18,154.11,20.0]
[1729113808778,6.4856,154.19,154.11,20.0]
[1729113809079,4.38187093,154.18,154.11,20.0]
[1729113809281,4.38187093,154.17,154.11,20.0]
[1729113809476,4.38187093,154.18,154.11,20.0]
[1729113809661,4.38476337,154.17,154.11,20.0]
[1729113809865,6.4856,154.19,154.11,20.0]
[1729113810069,4.38476627,154.18,154.11,20.0]
[1729113810268,4.38476627,154.17,154.11,20.0]